[Event "Lueneburg Open-A 2019"]
[Site "Lueneburg"]
[Date "2019.08.10"]
[Round "8.19"]
[White "Ramme, Christoph"]
[Black "Wobbe, Sven"]
[Result "1/2-1/2"]
[ECO "B22"]
[WhiteElo "2154"]
[BlackElo "2019"]
[Annotator "NA"]
[PlyCount "73"]
[EventDate "2019.08.03"]
[EventType "swiss"]
[EventCountry "GER"]
[SourceTitle "playchess.com"]
[Source "ChessBase"]
[SourceQuality "1"]
[TimeControl "40/5400+30:1800+30"]

1. e4 {[%emt 0:00:00]} c5 {[%emt 0:00:00]} 2. c3 {[%emt 0:00:00]} Nf6 {[%emt 0:02:03]} 3. e5 {[%emt 0:00:06]} Nd5 {[%emt 0:00:06]} 4. Nf3 {[%emt 0:00:26]} e6 {[%emt 0:00:32]} 5. d4 {[%emt 0:01:20]} cxd4 {[%emt 0:00:08]} 6. cxd4 {[%emt 0:00:29]} d6 {[%emt 0:01:00]} 7. Bc4 {[%emt 0:03:24]} Nc6 {[%emt 0:00:07]} 8. O-O {[%emt 0:01:38]} Be7 {[%emt 0:03:34]} 9. Qe2 {[%emt 0:04:24]} O-O {[%emt 0:02:54]} 10. Nc3 {[%emt 0:00:58]} Nxc3 {[%emt 0:01:34]} 11. bxc3 {[%emt 0:00:09]} b6 {[%emt 0:06:40]} 12. Bd3 {[%emt 0:07:51]} Bb7 {[%emt 0:01:31]} 13. h4 {[%emt 0:04:56]} dxe5 {[%emt 0:15:50]} 14. dxe5 {[%emt 0:00:27]} Qc7 {[%emt 0:03:46]} 15. Bg5 {[%emt 0:14:24]} g6 {[%emt 0:04:28]} 16. Qe3 {[%emt 0:10:13]} Bxg5 {[%emt 0:06:10]} 17. Qxg5 {[%emt 0:03:39]} Ne7 {[%emt 0:11:14]} 18. Nh2 {[%emt 0:05:45]} h6 {[%emt 0:14:35]} 19. Qxh6 {[%emt 0:15:12]} Qxe5 {[%emt 0:00:13]} 20. Ng4 {[%emt 0:01:19]} Qg7 {[%emt 0:05:18]} 21. Qg5 {[%emt 0:07:11]} f5 {[%emt 0:00:56]} 22. Ne3 {[%emt 0:01:18]} Qf6 {[%emt 0:02:48]} 23. Bc4 {[%emt 0:02:45]} Kg7 {[%emt 0:00:20]} 24. Rad1 {[%emt 0:03:39]} Rfd8 {[%emt 0:01:22]} 25. Rfe1 {[%emt 0:01:40]} e5 {[%emt 0:03:40]} 26. Bb3 {[%emt 0:01:46]} e4 {[%emt 0:02:03]} 27. Qf4 {[%emt 0:04:38]} Nc6 {[%emt 0:01:07]} 28. Bd5 {[%emt 0:01:11]} Rd7 {[%emt 0:04:16]} 29. h5 {[%emt 0:00:50]} Qe5 {[%emt 0:00:29]} 30. Qg5 {[%emt 0:00:36]} Qf6 {[%emt 0:00:13]} 31. Qf4 {[%emt 0:00:10]} Ne5 {[%emt 0:01:58]} 32. hxg6 {[%emt 0:00:34]} Kxg6 {[%emt 0:00:40]} 33. Qg3+ {[%emt 0:01:16]} Kh6 {[%emt 0:01:14]} 34. Qh3+ {[%emt 0:00:23]} Kg6 {[%emt 0:00:15]} 35. Qg3+ {[%emt 0:00:23]} Kh6 {[%emt 0:00:08]} 36. Qh3+ {[%emt 0:00:56]} Kg6 {[%emt 0:00:16]} 37. Bxb7 {[%emt 0:02:34]} 1/2-1/2

[Event "Lueneburg Open-A 2019"]
[Site "Lueneburg"]
[Date "2019.08.10"]
[Round "8.20"]
[White "Bosselmann, Tom Linus"]
[Black "Haas, Frank-Martin"]
[Result "1/2-1/2"]
[ECO "A08"]
[WhiteElo "2000"]
[BlackElo "2152"]
[Annotator "NA"]
[PlyCount "55"]
[EventDate "2019.08.03"]
[EventType "swiss"]
[EventCountry "GER"]
[SourceTitle "playchess.com"]
[Source "ChessBase"]
[SourceQuality "1"]
[TimeControl "40/5400+30:1800+30"]

1. e4 {[%emt 0:00:00]} e6 {[%emt 0:00:00]} 2. d3 {[%emt 0:00:00]} d5 {[%emt 0:00:00]} 3. Nd2 {[%emt 0:00:00]} c5 {[%emt 0:00:16]} 4. Ngf3 {[%emt 0:00:00]} Nc6 {[%emt 0:00:28]} 5. g3 {[%emt 0:00:12]} Nf6 {[%emt 0:00:19]} 6. Bg2 {[%emt 0:00:07]} g6 {[%emt 0:00:22]} 7. O-O {[%emt 0:00:21]} Bg7 {[%emt 0:00:10]} 8. Re1 {[%emt 0:00:27]} O-O {[%emt 0:00:10]} 9. Qe2 {[%emt 0:01:43]} b6 {[%emt 0:02:50]} 10. Nf1 {[%emt 0:00:47]} e5 {[%emt 0:04:39]} 11. Bg5 {[%emt 0:03:53]} d4 {[%emt 0:03:00]} 12. Nxe5 {[%emt 0:03:06]} Nxe5 {[%emt 0:03:42]} 13. f4 {[%emt 0:00:25]} Qc7 {[%emt 0:11:30]} 14. fxe5 {[%emt 0:01:31]} Qxe5 {[%emt 0:00:06]} 15. Bf4 {[%emt 0:00:19]} Qe6 {[%emt 0:00:16]} 16. Nd2 {[%emt 0:03:14]} Bb7 {[%emt 0:08:08]} 17. Nf3 {[%emt 0:03:14]} h6 {[%emt 0:11:13]} 18. a4 {[%emt 0:04:37]} Nd7 {[%emt 0:03:54]} 19. h4 {[%emt 0:10:04]} Rae8 {[%emt 0:12:07]} 20. Qf1 {[%emt 0:00:57]} Kh7 {[%emt 0:01:41]} 21. Bh3 {[%emt 0:02:24]} Qe7 {[%emt 0:00:12]} 22. Qf2 {[%emt 0:02:59]} Ne5 {[%emt 0:06:10]} 23. Nxe5 {[%emt 0:02:03]} Bxe5 {[%emt 0:00:06]} 24. b3 {[%emt 0:00:40]} Kg7 {[%emt 0:00:28]} 25. Rf1 {[%emt 0:01:15]} Bc8 {[%emt 0:03:38]} 26. Bxc8 {[%emt 0:00:54]} Rxc8 {[%emt 0:00:07]} 27. Rae1 {[%emt 0:01:04]} Rce8 {[%emt 0:00:50]} 28. Bxe5+ {[%emt 0:01:32]} 1/2-1/2

[Event "Lueneburg Open-A 2019"]
[Site "Lueneburg"]
[Date "2019.08.10"]
[Round "8.22"]
[White "Dijkhuis, Oele"]
[Black "Joppien, Arne"]
[Result "1-0"]
[ECO "B10"]
[WhiteElo "2161"]
[BlackElo "1940"]
[Annotator "NA"]
[PlyCount "101"]
[EventDate "2019.08.03"]
[EventType "swiss"]
[EventCountry "GER"]
[SourceTitle "playchess.com"]
[Source "ChessBase"]
[SourceQuality "1"]
[TimeControl "40/5400+30:1800+30"]

1. e4 {[%emt 0:00:00]} c6 {[%emt 0:00:00]} 2. c4 {[%emt 0:00:00]} d5 {[%emt 0:00:41]} 3. exd5 {[%emt 0:00:00]} cxd5 {[%emt 0:00:04]} 4. cxd5 {[%emt 0:00:00]} Qxd5 {[%emt 0:01:29]} 5. Nc3 {[%emt 0:00:06]} Qd6 {[%emt 0:00:28]} 6. d4 {[%emt 0:01:25]} a6 {[%emt 0:00:14]} 7. Nf3 {[%emt 0:00:24]} Nf6 {[%emt 0:00:09]} 8. a3 {[%emt 0:02:31]} g6 {[%emt 0:01:42]} 9. Bc4 {[%emt 0:02:23]} Bg7 {[%emt 0:01:25]} 10. O-O {[%emt 0:00:29]} O-O {[%emt 0:00:18]} 11. Ne5 {[%emt 0:14:47]} Nbd7 {[%emt 0:05:07]} 12. Bf4 {[%emt 0:05:01]} Nh5 {[%emt 0:06:05]} 13. Nxf7 {[%emt 0:11:08]} Qxf4 {[%emt 0:00:33]} 14. Nd5 {[%emt 0:01:04]} Qxf7 {[%emt 0:12:09]} 15. Nxe7+ {[%emt 0:01:05]} Kh8 {[%emt 0:02:35]} 16. Bxf7 {[%emt 0:00:07]} Rxf7 {[%emt 0:00:28]} 17. Re1 {[%emt 0:00:48]} Bf8 {[%emt 0:10:00]} 18. Nxc8 {[%emt 0:02:47]} Rxc8 {[%emt 0:01:40]} 19. Qb3 {[%emt 0:01:40]} Kg7 {[%emt 0:01:14]} 20. Qxb7 {[%emt 0:03:07]} Rb8 {[%emt 0:00:19]} 21. Qxa6 {[%emt 0:01:36]} Rxb2 {[%emt 0:00:13]} 22. Re2 {[%emt 0:02:10]} Rb6 {[%emt 0:00:59]} 23. Qc4 {[%emt 0:04:02]} Nf4 {[%emt 0:02:19]} 24. Re4 {[%emt 0:04:01]} Rbf6 {[%emt 0:03:43]} 25. a4 {[%emt 0:05:38]} Rf5 {[%emt 0:04:09]} 26. Ra2 {[%emt 0:08:40]} Nb6 {[%emt 0:05:06]} 27. Qb3 {[%emt 0:04:09]} Nbd5 {[%emt 0:01:33]} 28. Re5 {[%emt 0:01:31]} Rc7 {[%emt 0:03:58]} 29. Rc2 {[%emt 0:02:18]} Rxc2 {[%emt 0:06:59]} 30. Qxc2 {[%emt 0:00:06]} Rf7 {[%emt 0:01:25]} 31. Qb3 {[%emt 0:06:48]} Rc7 {[%emt 0:04:36]} 32. Re1 {[%emt 0:00:52]} Bb4 {[%emt 0:04:20]} 33. Rf1 {[%emt 0:03:25]} Kf6 {[%emt 0:06:43]} 34. g3 {[%emt 0:03:32]} Ne2+ {[%emt 0:00:48]} 35. Kg2 {[%emt 0:00:30]} Ke6 {[%emt 0:02:42]} 36. Qf3 {[%emt 0:01:23]} Nec3 {[%emt 0:02:29]} 37. Re1+ {[%emt 0:01:40]} Kd6 {[%emt 0:00:27]} 38. Qf8+ {[%emt 0:01:07]} Kc6 {[%emt 0:06:18]} 39. Qa8+ {[%emt 0:00:33]} Kd6 {[%emt 0:01:48]} 40. Qa6+ {[%emt 0:02:42]} Rc6 {[%emt 0:00:55]} 41. Re6+ {[%emt 0:30:37]} Kxe6 {[%emt 0:30:10]} 42. Qxc6+ {[%emt 0:00:04]} Kf7 {[%emt 0:00:00]} 43. Qb7+ {[%emt 0:00:00]} Kf6 {[%emt 0:00:00]} 44. Qa6+ {[%emt 0:00:00]} Kf5 {[%emt 0:00:00]} 45. a5 {[%emt 0:00:00]} Ke4 {[%emt 0:00:00]} 46. Qa7 {[%emt 0:00:00]} Nb5 {[%emt 0:00:00]} 47. Qxh7 {[%emt 0:00:00]} Kxd4 {[%emt 0:00:00]} 48. a6 {[%emt 0:00:00]} Ne7 {[%emt 0:00:00]} 49. Qh8+ {[%emt 0:00:00]} Kc4 {[%emt 0:00:00]} 50. Qh4+ {[%emt 0:00:00]} Kd5 {[%emt 0:00:00]} 51. Qxb4 {[%emt 0:00:00]} 1-0

[Event "Lueneburg Open-A 2019"]
[Site "Lueneburg"]
[Date "2019.08.10"]
[Round "8.23"]
[White "Thanisch, Matthias"]
[Black "Rick, Uwe"]
[Result "1/2-1/2"]
[ECO "D11"]
[WhiteElo "1991"]
[BlackElo "2113"]
[Annotator "NA"]
[PlyCount "55"]
[EventDate "2019.08.03"]
[EventType "swiss"]
[EventCountry "GER"]
[SourceTitle "playchess.com"]
[Source "ChessBase"]
[SourceQuality "1"]
[TimeControl "40/5400+30:1800+30"]

1. d4 {[%emt 0:00:00]} d5 {[%emt 0:00:04]} 2. g3 {[%emt 0:00:04]} Nf6 {[%emt 0:00:13]} 3. Nf3 {[%emt 0:00:30]} Bf5 {[%emt 0:00:15]} 4. Bg2 {[%emt 0:00:09]} e6 {[%emt 0:00:08]} 5. O-O {[%emt 0:00:12]} Be7 {[%emt 0:00:11]} 6. Nbd2 {[%emt 0:00:59]} h6 {[%emt 0:00:42]} 7. c4 {[%emt 0:00:44]} c6 {[%emt 0:00:20]} 8. b3 {[%emt 0:08:22]} Nbd7 {[%emt 0:00:34]} 9. Bb2 {[%emt 0:03:09]} O-O {[%emt 0:00:52]} 10. Ne5 {[%emt 0:04:00]} Bh7 {[%emt 0:05:02]} 11. Ndf3 {[%emt 0:05:45]} Re8 {[%emt 0:04:20]} 12. Qc1 {[%emt 0:05:27]} a5 {[%emt 0:07:38]} 13. c5 {[%emt 0:05:08]} Nxe5 {[%emt 0:04:39]} 14. Nxe5 {[%emt 0:00:37]} Nd7 {[%emt 0:00:22]} 15. Rd1 {[%emt 0:09:26]} Qc7 {[%emt 0:08:18]} 16. Nd3 {[%emt 0:08:01]} Bf6 {[%emt 0:03:09]} 17. Bh3 {[%emt 0:06:22]} Bf5 {[%emt 0:04:49]} 18. Bg2 {[%emt 0:04:37]} e5 {[%emt 0:03:53]} 19. Nxe5 {[%emt 0:01:47]} Nxe5 {[%emt 0:00:20]} 20. dxe5 {[%emt 0:01:38]} Bxe5 {[%emt 0:00:13]} 21. e3 {[%emt 0:02:15]} Be4 {[%emt 0:15:52]} 22. Bd4 {[%emt 0:01:57]} Bxg2 {[%emt 0:02:44]} 23. Kxg2 {[%emt 0:00:07]} Bxd4 {[%emt 0:06:38]} 24. Rxd4 {[%emt 0:00:41]} Re4 {[%emt 0:00:13]} 25. Qd2 {[%emt 0:03:17]} Rxd4 {[%emt 0:00:27]} 26. exd4 {[%emt 0:01:24]} Re8 {[%emt 0:05:14]} 27. Re1 {[%emt 0:26:52]} Re4 {[%emt 0:26:20]} 28. f3 1/2-1/2

[Event "Lueneburg Open-A 2019"]
[Site "Lueneburg"]
[Date "2019.08.10"]
[Round "8.24"]
[White "Nyenhuis, Yannek"]
[Black "Klages, Hans Juergen"]
[Result "1/2-1/2"]
[ECO "E90"]
[WhiteElo "1927"]
[BlackElo "2095"]
[Annotator "NA"]
[PlyCount "57"]
[EventDate "2019.08.03"]
[EventType "swiss"]
[EventCountry "GER"]
[SourceTitle "playchess.com"]
[Source "ChessBase"]
[SourceQuality "1"]
[TimeControl "40/5400+30:1800+30"]

1. d4 {[%emt 0:00:00]} c5 {[%emt 0:00:00]} 2. d5 {[%emt 0:00:00]} Nf6 {[%emt 0:00:00]} 3. c4 {[%emt 0:00:00]} g6 {[%emt 0:00:00]} 4. Nc3 {[%emt 0:00:00]} Bg7 {[%emt 0:00:16]} 5. e4 {[%emt 0:00:12]} d6 {[%emt 0:00:05]} 6. Nf3 {[%emt 0:00:10]} O-O {[%emt 0:00:08]} 7. h3 {[%emt 0:00:12]} Na6 {[%emt 0:02:05]} 8. Bd3 {[%emt 0:02:23]} Bd7 {[%emt 0:00:34]} 9. O-O {[%emt 0:02:30]} Nc7 {[%emt 0:01:02]} 10. Bg5 {[%emt 0:03:12]} Rb8 {[%emt 0:01:07]} 11. e5 {[%emt 0:02:43]} Nfe8 {[%emt 0:16:44]} 12. Ne4 {[%emt 0:07:26]} f6 {[%emt 0:25:28]} 13. exf6 {[%emt 0:03:03]} Nxf6 {[%emt 0:00:28]} 14. Nxf6+ {[%emt 0:00:13]} Bxf6 {[%emt 0:00:22]} 15. Bxf6 {[%emt 0:00:56]} Rxf6 {[%emt 0:00:02]} 16. Qe2 {[%emt 0:03:48]} e5 {[%emt 0:00:10]} 17. Nd2 {[%emt 0:01:32]} Bf5 {[%emt 0:01:11]} 18. g4 {[%emt 0:03:55]} Bxd3 {[%emt 0:00:12]} 19. Qxd3 {[%emt 0:00:10]} Rf4 {[%emt 0:02:54]} 20. Ne4 {[%emt 0:01:24]} b5 {[%emt 0:00:09]} 21. b3 {[%emt 0:00:37]} bxc4 {[%emt 0:00:22]} 22. bxc4 {[%emt 0:00:06]} Ne8 {[%emt 0:09:30]} 23. Rab1 {[%emt 0:01:28]} Rb6 {[%emt 0:01:17]} 24. Rxb6 {[%emt 0:01:55]} axb6 {[%emt 0:00:00]} 25. Rb1 {[%emt 0:00:30]} Nf6 {[%emt 0:00:26]} 26. Nxf6+ {[%emt 0:03:51]} Qxf6 {[%emt 0:00:07]} 27. Qe2 {[%emt 0:00:44]} Rf3 {[%emt 0:06:20]} 28. Rb3 {[%emt 0:03:14]} Rxb3 {[%emt 0:03:10]} 29. axb3 {[%emt 0:58:16]} 1/2-1/2

[Event "Lueneburg Open-A 2019"]
[Site "Lueneburg"]
[Date "2019.08.10"]
[Round "8.25"]
[White "Rothenberg, Jannik"]
[Black "Schulz, Daniel"]
[Result "0-1"]
[ECO "D87"]
[WhiteElo "1859"]
[BlackElo "2071"]
[Annotator "NA"]
[PlyCount "80"]
[EventDate "2019.08.03"]
[EventType "swiss"]
[EventCountry "GER"]
[SourceTitle "playchess.com"]
[Source "ChessBase"]
[SourceQuality "1"]
[TimeControl "40/5400+30:1800+30"]

1. d4 {[%emt 0:00:00]} g6 {[%emt 0:16:23]} 2. c4 {[%emt 0:03:17]} Nf6 {[%emt 0:00:20]} 3. Nc3 {[%emt 0:01:10]} d5 {[%emt 0:01:08]} 4. cxd5 {[%emt 0:01:25]} Nxd5 {[%emt 0:00:06]} 5. e4 {[%emt 0:00:33]} Nxc3 {[%emt 0:00:02]} 6. bxc3 {[%emt 0:00:10]} Bg7 {[%emt 0:00:12]} 7. Bc4 {[%emt 0:02:06]} c5 {[%emt 0:00:16]} 8. Ne2 {[%emt 0:00:24]} Nc6 {[%emt 0:00:23]} 9. Be3 {[%emt 0:01:34]} O-O {[%emt 0:00:13]} 10. O-O {[%emt 0:00:30]} Qc7 {[%emt 0:00:07]} 11. Qd2 {[%emt 0:18:42]} Rd8 {[%emt 0:06:56]} 12. Bb3 {[%emt 0:14:20]} b6 {[%emt 0:14:35]} 13. Rfd1 {[%emt 0:04:23]} Ba6 {[%emt 0:13:00]} 14. Rac1 {[%emt 0:06:25]} Na5 {[%emt 0:15:02]} 15. Qc2 {[%emt 0:09:19]} c4 {[%emt 0:03:52]} 16. Ba4 {[%emt 0:02:11]} b5 {[%emt 0:00:16]} 17. Rb1 {[%emt 0:03:28]} Qd7 {[%emt 0:02:47]} 18. Rb4 {[%emt 0:01:59]} bxa4 {[%emt 0:06:17]} 19. Qxa4 {[%emt 0:00:19]} Qc7 {[%emt 0:00:47]} 20. Rdb1 {[%emt 0:04:06]} Bc8 {[%emt 0:04:52]} 21. Rb5 {[%emt 0:02:28]} Nb7 {[%emt 0:01:13]} 22. Qb4 {[%emt 0:01:13]} Nd6 {[%emt 0:02:19]} 23. Rc5 {[%emt 0:04:11]} Qb6 {[%emt 0:00:55]} 24. e5 {[%emt 0:00:59]} Qxb4 {[%emt 0:01:20]} 25. Rxb4 {[%emt 0:00:01]} Nf5 {[%emt 0:00:56]} 26. Bg5 {[%emt 0:04:54]} h6 {[%emt 0:01:25]} 27. Bf4 {[%emt 0:00:47]} g5 {[%emt 0:00:21]} 28. Bc1 {[%emt 0:01:37]} Be6 {[%emt 0:02:37]} 29. f4 {[%emt 0:02:01]} g4 {[%emt 0:00:32]} 30. Kf2 {[%emt 0:01:10]} Bd5 {[%emt 0:01:21]} 31. Ba3 {[%emt 0:02:17]} e6 {[%emt 0:00:55]} 32. Rc7 {[%emt 0:00:41]} Bf8 {[%emt 0:01:36]} 33. Ra4 {[%emt 0:00:07]} Bxa3 {[%emt 0:00:37]} 34. Rxa3 {[%emt 0:00:06]} a6 {[%emt 0:00:40]} 35. Ra4 {[%emt 0:00:18]} Rdb8 {[%emt 0:00:43]} 36. Rb4 {[%emt 0:00:18]} a5 {[%emt 0:01:03]} 37. Rxb8+ {[%emt 0:00:54]} Rxb8 {[%emt 0:00:10]} 38. Ra7 {[%emt 0:00:21]} Rb2 {[%emt 0:01:03]} 39. Rxa5 {[%emt 0:00:15]} g3+ {[%emt 0:01:22]} 40. hxg3 {[%emt 0:00:14]} Nxg3 {[%emt 0:00:21]} 0-1

[Event "Lueneburg Open-A 2019"]
[Site "Lueneburg"]
[Date "2019.08.10"]
[Round "8.26"]
[White "Kosanke, Stefan"]
[Black "Ploder, Udo"]
[Result "1-0"]
[ECO "D02"]
[WhiteElo "2029"]
[BlackElo "1942"]
[Annotator "NA"]
[PlyCount "87"]
[EventDate "2019.08.03"]
[EventType "swiss"]
[EventCountry "GER"]
[SourceTitle "playchess.com"]
[Source "ChessBase"]
[SourceQuality "1"]
[TimeControl "40/5400+30:1800+30"]

1. Nf3 {[%emt 0:00:00]} d5 {[%emt 0:00:37]} 2. d4 {[%emt 0:00:21]} c5 {[%emt 0:00:19]} 3. g3 {[%emt 0:05:33]} cxd4 {[%emt 0:03:12]} 4. Bg2 {[%emt 0:01:12]} Nf6 {[%emt 0:00:34]} 5. O-O {[%emt 0:04:25]} g6 {[%emt 0:01:35]} 6. Nxd4 {[%emt 0:03:35]} e5 {[%emt 0:01:10]} 7. Nb3 {[%emt 0:00:35]} Nc6 {[%emt 0:03:35]} 8. Bg5 {[%emt 0:02:48]} d4 {[%emt 0:02:07]} 9. c3 {[%emt 0:01:36]} Be7 {[%emt 0:03:29]} 10. Bxc6+ {[%emt 0:04:42]} bxc6 {[%emt 0:01:14]} 11. cxd4 {[%emt 0:00:29]} e4 {[%emt 0:04:05]} 12. Nc3 {[%emt 0:02:06]} Bf5 {[%emt 0:00:33]} 13. Nc5 {[%emt 0:10:50]} Rb8 {[%emt 0:11:14]} 14. Bxf6 {[%emt 0:23:15]} Bxf6 {[%emt 0:00:12]} 15. e3 {[%emt 0:01:50]} Rxb2 {[%emt 0:05:57]} 16. Qc1 {[%emt 0:04:21]} Rb6 {[%emt 0:04:22]} 17. N3xe4 {[%emt 0:01:31]} Be7 {[%emt 0:00:45]} 18. f3 {[%emt 0:01:36]} Bh3 {[%emt 0:03:52]} 19. Rd1 {[%emt 0:02:01]} Qd5 {[%emt 0:02:03]} 20. Nf2 {[%emt 0:04:38]} Bc8 {[%emt 0:01:06]} 21. e4 {[%emt 0:01:06]} Qh5 {[%emt 0:02:28]} 22. Rd3 {[%emt 0:03:36]} O-O {[%emt 0:00:57]} 23. e5 {[%emt 0:03:18]} Rb5 {[%emt 0:04:38]} 24. a4 {[%emt 0:02:31]} Rb4 {[%emt 0:00:26]} 25. Qd2 {[%emt 0:01:41]} a5 {[%emt 0:00:19]} 26. Nce4 {[%emt 0:01:22]} Qf5 {[%emt 0:01:42]} 27. Ng4 {[%emt 0:01:12]} Kh8 {[%emt 0:03:18]} 28. Nef6 {[%emt 0:07:24]} g5 {[%emt 0:01:32]} 29. Rc1 {[%emt 0:00:39]} Ba6 {[%emt 0:03:24]} 30. Re3 {[%emt 0:01:10]} Rd8 {[%emt 0:03:45]} 31. Qa2 {[%emt 0:01:44]} Rbxd4 {[%emt 0:09:43]} 32. Qxf7 {[%emt 0:01:12]} Rd1+ {[%emt 0:00:14]} 33. Re1 {[%emt 0:00:21]} Bc5+ {[%emt 0:04:39]} 34. Kg2 {[%emt 0:00:20]} Rxe1 {[%emt 0:04:41]} 35. Rxe1 {[%emt 0:00:27]} Rf8 {[%emt 0:00:44]} 36. Qb3 {[%emt 0:00:35]} Bc8 {[%emt 0:00:23]} 37. Qc4 {[%emt 0:00:43]} Bb4 {[%emt 0:00:23]} 38. Rd1 {[%emt 0:00:25]} h5 {[%emt 0:02:07]} 39. Nf2 {[%emt 0:00:55]} Qxe5 {[%emt 0:00:55]} 40. Nxh5 {[%emt 0:00:43]} Bc3 {[%emt 0:08:41]} 41. Qxc6 {[%emt 0:08:09]} Bd4 {[%emt 0:01:38]} 42. Ne4 {[%emt 0:05:09]} Be6 {[%emt 0:01:49]} 43. Rxd4 {[%emt 0:03:56]} Qxd4 {[%emt 0:00:25]} 44. Qxe6 {[%emt 0:00:18]} 1-0

[Event "Lueneburg Open-A 2019"]
[Site "Lueneburg"]
[Date "2019.08.10"]
[Round "8.27"]
[White "Bargsten, Justus"]
[Black "Koenig, Christian"]
[Result "0-1"]
[ECO "A30"]
[WhiteElo "1946"]
[BlackElo "2026"]
[Annotator "NA"]
[PlyCount "64"]
[EventDate "2019.08.03"]
[EventType "swiss"]
[EventCountry "GER"]
[SourceTitle "playchess.com"]
[Source "ChessBase"]
[SourceQuality "1"]
[TimeControl "40/5400+30:1800+30"]

1. Nf3 {[%emt 0:00:00]} Nf6 {[%emt 0:01:06]} 2. b3 {[%emt 0:00:00]} g6 {[%emt 0:01:11]} 3. Bb2 {[%emt 0:00:00]} Bg7 {[%emt 0:00:05]} 4. c4 {[%emt 0:00:54]} c5 {[%emt 0:01:11]} 5. g3 {[%emt 0:02:32]} b6 {[%emt 0:00:39]} 6. Bg2 {[%emt 0:04:43]} Bb7 {[%emt 0:00:10]} 7. Nc3 {[%emt 0:00:48]} d6 {[%emt 0:00:24]} 8. O-O {[%emt 0:01:08]} O-O {[%emt 0:02:48]} 9. d4 {[%emt 0:00:29]} cxd4 {[%emt 0:00:22]} 10. Nxd4 {[%emt 0:00:06]} Bxg2 {[%emt 0:00:47]} 11. Kxg2 {[%emt 0:00:07]} Qc8 {[%emt 0:02:13]} 12. e4 {[%emt 0:01:45]} Qb7 {[%emt 0:02:06]} 13. f3 {[%emt 0:03:38]} Nbd7 {[%emt 0:00:31]} 14. Qd2 {[%emt 0:01:24]} Rac8 {[%emt 0:00:54]} 15. Rac1 {[%emt 0:00:42]} a6 {[%emt 0:00:34]} 16. Nd5 {[%emt 0:03:08]} Rfe8 {[%emt 0:01:24]} 17. a4 {[%emt 0:09:21]} Nc5 {[%emt 0:04:23]} 18. Qe3 {[%emt 0:18:25]} Nfd7 {[%emt 0:02:04]} 19. Ba1 {[%emt 0:13:31]} e6 {[%emt 0:05:30]} 20. Nb4 {[%emt 0:00:39]} d5 {[%emt 0:00:37]} 21. cxd5 {[%emt 0:04:36]} exd5 {[%emt 0:00:50]} 22. Nxd5 {[%emt 0:09:35]} Qxd5 {[%emt 0:00:39]} 23. exd5 {[%emt 0:00:31]} Rxe3 {[%emt 0:00:09]} 24. b4 {[%emt 0:00:05]} Rd3 {[%emt 0:42:10]} 25. Nc6 {[%emt 0:00:11]} Rd2+ {[%emt 0:00:45]} 26. Kh3 {[%emt 0:00:20]} Re8 {[%emt 0:03:10]} 27. Rfe1 {[%emt 0:02:33]} Rxe1 {[%emt 0:01:53]} 28. Rxe1 {[%emt 0:00:05]} Bxa1 {[%emt 0:00:43]} 29. bxc5 {[%emt 0:00:06]} Bf6 {[%emt 0:00:30]} 30. Ne7+ {[%emt 0:01:10]} Bxe7 {[%emt 0:01:38]} 31. c6 {[%emt 0:00:09]} Kf8 {[%emt 0:03:17]} 32. Rc1 {[%emt 0:00:21]} Bd8 {[%emt 0:00:32]} 0-1

[Event "Lueneburg Open-A 2019"]
[Site "Lueneburg"]
[Date "2019.08.10"]
[Round "8.28"]
[White "Colbow, Collin"]
[Black "Berres, Eric"]
[Result "1-0"]
[ECO "C06"]
[WhiteElo "2167"]
[BlackElo "1890"]
[Annotator "NA"]
[PlyCount "85"]
[EventDate "2019.08.03"]
[EventType "swiss"]
[EventCountry "GER"]
[SourceTitle "playchess.com"]
[Source "ChessBase"]
[SourceQuality "1"]
[TimeControl "40/5400+30:1800+30"]

1. e4 {[%emt 0:00:00]} e6 {[%emt 0:00:00]} 2. d4 {[%emt 0:00:00]} d5 {[%emt 0:00:00]} 3. Nd2 {[%emt 0:00:00]} Nf6 {[%emt 0:00:03]} 4. e5 {[%emt 0:00:01]} Nfd7 {[%emt 0:00:04]} 5. Bd3 {[%emt 0:00:04]} c5 {[%emt 0:00:05]} 6. c3 {[%emt 0:00:05]} Nc6 {[%emt 0:00:08]} 7. Ne2 {[%emt 0:00:06]} Qb6 {[%emt 0:00:27]} 8. Nf3 {[%emt 0:00:43]} cxd4 {[%emt 0:00:12]} 9. cxd4 {[%emt 0:00:04]} f6 {[%emt 0:00:39]} 10. O-O {[%emt 0:00:53]} fxe5 {[%emt 0:05:35]} 11. dxe5 {[%emt 0:01:20]} Ndxe5 {[%emt 0:14:21]} 12. Nxe5 {[%emt 0:01:50]} Nxe5 {[%emt 0:00:38]} 13. Be3 {[%emt 0:00:22]} Bc5 {[%emt 1:14:18]} 14. Nf4 {[%emt 0:02:35]} g6 {[%emt 0:21:09]} 15. Nxd5 {[%emt 0:09:12]} exd5 {[%emt 0:03:29]} 16. Bb5+ {[%emt 0:01:36]} Bd7 {[%emt 0:13:27]} 17. Qxd5 {[%emt 0:01:34]} Qd6 {[%emt 0:02:51]} 18. Qxc5 {[%emt 0:23:39]} Qxc5 {[%emt 0:01:51]} 19. Bxc5 {[%emt 0:00:06]} Bxb5 {[%emt 0:01:34]} 20. Rfe1 {[%emt 0:00:08]} Kf7 {[%emt 0:06:50]} 21. Rxe5 {[%emt 0:00:07]} Rhe8 {[%emt 0:00:28]} 22. Rxe8 {[%emt 0:02:46]} Bxe8 {[%emt 0:03:42]} 23. Re1 {[%emt 0:00:43]} b6 {[%emt 0:01:54]} 24. Re7+ {[%emt 0:05:27]} Kf6 {[%emt 0:00:27]} 25. Ba3 {[%emt 0:00:07]} Bf7 {[%emt 0:02:06]} 26. h4 {[%emt 0:07:26]} h5 {[%emt 0:03:05]} 27. b3 {[%emt 0:01:08]} Re8 {[%emt 0:02:41]} 28. Rxa7 {[%emt 0:01:58]} Re1+ {[%emt 0:00:05]} 29. Kh2 {[%emt 0:00:03]} Re2 {[%emt 0:00:05]} 30. Kg3 {[%emt 0:01:27]} Re4 {[%emt 0:02:32]} 31. Bb2+ {[%emt 0:06:42]} Ke6 {[%emt 0:00:41]} 32. Rb7 {[%emt 0:07:46]} Re2 {[%emt 0:03:01]} 33. Rxb6+ {[%emt 0:01:00]} Kd7 {[%emt 0:01:34]} 34. Bd4 {[%emt 0:01:18]} Rxa2 {[%emt 0:00:10]} 35. Kf4 {[%emt 0:01:30]} Rd2 {[%emt 0:01:59]} 36. Ke5 {[%emt 0:01:16]} Re2+ {[%emt 0:00:56]} 37. Be3 {[%emt 0:01:04]} Ra2 {[%emt 0:01:17]} 38. Rb7+ {[%emt 0:00:14]} Ke8 {[%emt 0:00:07]} 39. b4 {[%emt 0:01:06]} Ra6 {[%emt 0:00:21]} 40. Bb6 {[%emt 0:00:41]} Ra2 {[%emt 0:00:37]} 41. Kf6 {[%emt 0:31:48]} Bd5 {[%emt 0:30:46]} 42. Re7+ {[%emt 0:00:05]} Kf8 {[%emt 0:00:12]} 43. Rd7 {[%emt 0:00:10]} 1-0